{"text_format":"1","workbook":"xlsx","n_sheets":6,"sheets":["Инструкция","Регистрация","Кроссворд","ответы","анализ","Оценка"],"not_rendered":{"charts":0,"images":5,"macros":1,"external_links":0,"defined_names":0,"comments":1,"pivot_tables":0},"unopened":[],"bounds":{"document_bytes":16777216,"sheet_cells":100000,"rows_first":2000,"rows_last":500,"rows_between":2000,"halvings":0,"cell_chars":16384,"cell_head_chars":4096},"cells_cut":0,"cells_raw":0,"read":"whole","date_system":"1900"}

{"sheet":"Инструкция","index":0,"n_rows":0,"n_cols":0,"rows_kept":0,"cut":false,"hidden":false,"merged":[]}

{"sheet":"Регистрация","index":1,"n_rows":4,"n_cols":5,"rows_kept":4,"cut":false,"hidden":false,"merged":[]}
[]
[null,null,null,null,"Фамилия"]
[null,null,null,null,"Имя"]
[null,null,null,null,"Класс"]

{"sheet":"Кроссворд","index":2,"n_rows":0,"n_cols":0,"rows_kept":0,"cut":false,"hidden":false,"merged":[]}

{"sheet":"ответы","index":3,"n_rows":21,"n_cols":26,"rows_kept":21,"cut":false,"hidden":true,"merged":[]}
[]
[]
[]
[]
[null,null,null,null,null,null,null,null,null,null,null,null,null,null,null,null,null,null,null,null,null,null,"р"]
[null,null,null,null,null,null,null,null,null,null,null,null,null,null,null,null,null,null,null,null,null,null,"у"]
[null,null,null,null,null,null,null,null,null,null,null,null,null,null,null,null,null,null,null,null,null,null,"б"]
[null,null,null,null,null,null,null,"в",null,null,null,null,null,null,null,null,null,null,null,null,null,null,"а"]
[null,null,null,null,null,null,null,"а",null,null,null,null,null,null,null,null,null,null,null,null,null,null,"ш"]
[null,null,null,null,null,null,null,"с",null,null,null,null,null,null,null,null,null,null,null,null,null,null,"к"]
[null,null,null,null,null,null,null,"и",null,null,null,null,null,"о","б","л","и","ц","о","в","ы","в","а","н","и","е"]
[null,null,null,null,null,null,null,"л",null,null,null,null,null,null,"у"]
[null,null,null,null,null,null,null,"ь",null,null,null,null,null,null,"х"]
[null,null,null,null,null,null,null,"е",null,null,null,null,null,"м","а","р","к","е","т","р","и"]
[null,null,null,null,null,null,null,"в",null,null,null,null,null,null,"л"]
[null,null,null,null,null,null,null,"с",null,null,null,null,"э","с","к","и","з",null,null,null,"б"]
[null,null,null,null,null,null,null,"к",null,null,null,null,null,null,"и","н","т","а","р","с","и","я"]
[null,null,null,"п","е","р","в","о","п","е","ч","а","т","а","н","и","е",null,null,null,"б"]
[null,null,null,null,null,null,null,"е",null,null,null,null,"ш","п","о","н",null,null,null,null,"л"]
[null,null,null,null,null,null,null,null,null,null,null,null,null,null,null,null,null,null,null,"к","и","е","в"]
[null,null,null,null,null,null,null,null,null,null,null,null,null,null,null,null,null,null,null,null,"н"]

{"sheet":"анализ","index":4,"n_rows":13,"n_cols":10,"rows_kept":13,"cut":false,"hidden":true,"merged":[]}
[]
[null,null,null,"Задание","Ответ","Правильный ответ","Балл"]
[null,null,null,1,"бухалкино",{"$f":"CONCATENATE(Кроссворд!O12,Кроссворд!O13,Кроссворд!O14,Кроссворд!O15,Кроссворд!O16,Кроссворд!O17,Кроссворд!O18,Кроссворд!O19,Кроссворд!O20)","v":""},{"$f":"IF(E3=F3,1,0)","v":0}]
[null,null,null,2,"маркетри",{"$f":"CONCATENATE(Кроссворд!N15,Кроссворд!O15,Кроссворд!P15,Кроссворд!Q15,Кроссворд!R15,Кроссворд!S15,Кроссворд!T15,Кроссворд!U15)","v":""},{"$f":"IF(E4=F4,1,0)","v":0},null,"Правильно",{"$f":"SUM(G3:G13)","v":0}]
[null,null,null,3,"шпон",{"$f":"CONCATENATE(Кроссворд!M20,Кроссворд!N20,Кроссворд!O20,Кроссворд!P20)","v":""},0,null,"Процент",{"$f":"J4/11*100","v":0}]
[null,null,null,4,"облицовывание",{"$f":"CONCATENATE(Кроссворд!N12,Кроссворд!O12,Кроссворд!P12,Кроссворд!Q12,Кроссворд!R12,Кроссворд!S12,Кроссворд!T12,Кроссворд!U12,Кроссворд!V12,Кроссворд!W12,Кроссворд!X12,Кроссворд!Y12,Кроссворд!Z12)","v":""},0,null,"Оценка",{"$f":"IF(J5>=90,5,IF(J5>=75,4,IF(J5>=60,3,2)))","v":2}]
[null,null,null,5,"интарсия",{"$f":"CONCATENATE(Кроссворд!O18,Кроссворд!P18,Кроссворд!Q18,Кроссворд!R18,Кроссворд!S18,Кроссворд!T18,Кроссворд!U18,Кроссворд!V18)","v":""},0]
[null,null,null,6,"рубашка",{"$f":"CONCATENATE(Кроссворд!W6,Кроссворд!W7,Кроссворд!W8,Кроссворд!W9,Кроссворд!W10,Кроссворд!W11,Кроссворд!W12)","v":""},0]
[null,null,null,7,"библин",{"$f":"CONCATENATE(Кроссворд!U17,Кроссворд!U18,Кроссворд!U19,Кроссворд!U20,Кроссворд!U21,Кроссворд!U22)","v":""},0]
[null,null,null,8,"эскиз",{"$f":"CONCATENATE(Кроссворд!M17,Кроссворд!N17,Кроссворд!O17,Кроссворд!P17,Кроссворд!Q17)","v":""},0]
[null,null,null,9,"киев",{"$f":"CONCATENATE(Кроссворд!T21,Кроссворд!U21,Кроссворд!V21,Кроссворд!W21)","v":""},0]
[null,null,null,10,"первопечатание",{"$f":"CONCATENATE(Кроссворд!D19,Кроссворд!E19,Кроссворд!F19,Кроссворд!G19,Кроссворд!H19,Кроссворд!I19,Кроссворд!J19,Кроссворд!K19,Кроссворд!L19,Кроссворд!M19,Кроссворд!N19,Кроссворд!O19,Кроссворд!P19,Кроссворд!Q19)","v":""},0]
[null,null,null,11,"васильевское",{"$f":"CONCATENATE(Кроссворд!H9,Кроссворд!H10,Кроссворд!H11,Кроссворд!H12,Кроссворд!H13,Кроссворд!H14,Кроссворд!H15,Кроссворд!H16,Кроссворд!H17,Кроссворд!H18,Кроссворд!H19)","v":""},0]

{"sheet":"Оценка","index":5,"n_rows":8,"n_cols":5,"rows_kept":8,"cut":false,"hidden":false,"merged":[[7,2,7,3],[6,4,6,5],[1,2,1,3],[1,4,1,5],[2,2,2,3],[2,4,2,5],[3,2,3,3],[3,4,3,5],[6,2,6,3],[7,4,7,5]]}
[]
[null,null,"Фамилия",null,{"$f":"Регистрация!F2","v":0}]
[null,null,"Имя",null,{"$f":"Регистрация!F3","v":0}]
[null,null,"Класс",null,{"$f":"Регистрация!F4","v":0}]
[]
[]
[null,null,"Процент",null,{"$f":"анализ!J5","v":0}]
[null,null,"Ваша оценка",null,{"$f":"анализ!J6","v":2}]